bitfinex/quotes_SOLUSD_20250522
["timestamp","ask_amount","ask_price","bid_price","bid_amount"]
[1747886238851,32.53494246,177.04,176.98,32.53494246]
[1747886239559,32.53494246,177.06,177.01,32.53494246]
[1747886239741,32.53494246,177.04,176.98,5.65032376]
[1747886239933,32.53494246,177.05,176.99,32.53494246]
[1747886240133,32.53494246,177.05,176.98,5.65032376]
[1747886240365,32.53494246,177.04,176.98,32.53494246]
[1747886240766,32.53494246,177.03,176.96,1.6106]
[1747886241059,32.53494246,176.98,176.93,32.53494246]
[1747886241252,32.53494246,176.97,176.91,32.53494246]
[1747886241453,32.53494246,176.95,176.89,34.08174246]
[1747886241664,33.88,176.99,176.92,32.53494246]
[1747886241866,33.88,176.99,176.94,32.53494246]
[1747886242548,5.64791803,177.06,176.96,32.53494246]
[1747886242744,32.53494246,177.02,176.93,44.79181043]
[1747886243058,33.88,177.06,177.0,32.53494246]
[1747886243268,18.64964886,177.11,176.93,44.79181043]
[1747886243269,32.53494246,177.07,176.96,44.79181043]
[1747886243558,33.88,177.1,176.99,32.53494246]
[1747886243763,32.53494246,177.05,176.99,32.53494246]
[1747886243963,5.64684623,177.09,177.0,32.53494246]
[1747886244262,32.53494246,177.04,176.98,32.53494246]
[1747886244639,32.53494246,177.02,176.96,38.18592321]
[1747886244841,32.53494246,177.03,176.97,32.53494246]
[1747886245050,32.53494246,177.04,176.98,32.53494246]
[1747886245240,32.53494246,177.05,176.99,32.53494246]
[1747886245440,32.53494246,177.06,177.01,5.64939833]
[1747886245641,32.53494246,177.03,176.98,31.65021794]
[1747886245862,32.53494246,177.02,176.96,64.18590359]
[1747886246071,32.53494246,177.01,176.96,26.0]
[1747886246570,32.53494246,177.01,176.93,33.88]
[1747886246858,32.53494246,177.0,176.94,32.53494246]
[1747886247071,32.53494246,177.01,176.95,32.53494246]
[1747886247254,32.53494246,177.02,176.96,32.53494246]
[1747886247573,32.53494246,177.02,176.94,5.65163332]
[1747886247860,32.53494246,177.02,176.96,32.53494246]
[1747886248246,32.53494246,177.02,176.97,32.53494246]
[1747886248755,32.53494246,177.02,176.96,32.53494246]
[1747886249055,32.53494246,177.02,176.92,54.46]
[1747886249056,32.53494246,176.99,176.93,32.53494246]
[1747886249565,5.64812199,177.05,176.95,32.53494246]
[1747886249767,32.53494246,177.03,176.97,32.53494246]
[1747886250865,32.53494246,177.03,176.95,26.0]
[1747886250866,32.53494246,177.05,177.0,32.53494246]
[1747886251043,32.53494246,177.05,176.99,32.53494246]
[1747886251551,32.53494246,177.05,177.0,5.64971751]
[1747886251842,33.88,177.1,177.01,32.53494246]
[1747886251843,32.53494246,177.07,177.01,32.53494246]
[1747886252057,32.53494246,177.04,176.97,26.0]
[1747886252263,32.53494246,177.02,176.96,26.0]
[1747886252567,32.53494246,177.04,176.98,32.53494246]
[1747886252765,32.53494246,177.06,177.01,32.53494246]
[1747886252971,6.1227,177.13,177.05,32.53494246]
[1747886253148,32.53494246,177.12,177.06,32.53494246]
[1747886253549,32.53494246,177.12,177.07,5.64748404]
[1747886253750,32.53494246,177.19,177.11,32.53494246]
[1747886254064,32.53494246,177.18,177.13,32.53494246]
[1747886254247,32.53494246,177.17,177.12,32.53494246]
[1747886254672,32.53494246,177.17,177.05,18.64964886]
[1747886254673,32.53494246,177.14,177.0,1.5693]
[1747886254848,32.53494246,177.12,177.04,26.0]
[1747886255041,32.53494246,177.12,177.07,32.53494246]
[1747886255365,32.53494246,177.12,177.04,26.0]
[1747886255569,32.53494246,177.12,177.07,32.53494246]
[1747886255867,32.53494246,177.1,177.05,32.53494246]
[1747886256167,32.53494246,177.09,177.04,58.53494246]
[1747886256464,32.53494246,177.09,177.04,26.0]
[1747886256653,32.53494246,177.08,177.0,1.5693]
[1747886256851,32.53494246,177.07,177.01,32.53494246]
[1747886257043,32.53494246,177.07,177.01,58.53494246]
[1747886257471,32.53494246,177.07,177.02,32.53494246]
[1747886257640,32.53494246,177.07,177.0,1.5693]
[1747886257855,32.53494246,177.06,177.0,34.10424246]
[1747886258275,32.53494246,177.05,177.0,34.10424246]
[1747886258459,32.53494246,177.05,177.0,32.53494246]
[1747886258659,32.53494246,177.04,176.98,32.53494246]
[1747886258853,32.53494246,177.01,176.95,34.10704246]
[1747886259165,32.53494246,177.02,176.96,32.53494246]
[1747886259364,32.53494246,177.01,176.96,32.53494246]
[1747886259558,32.53494246,177.0,176.95,34.10704246]
[1747886259752,33.88,177.05,176.96,32.53494246]
[1747886259949,33.88,177.05,176.97,32.53494246]
[1747886260164,32.53494246,177.04,176.99,32.53494246]
[1747886260565,32.53494246,177.04,176.96,26.0]
[1747886260759,5.6474816,177.08,176.99,32.53494246]
[1747886260961,32.53494246,177.07,177.02,32.53494246]
[1747886261564,66.41494246,177.08,177.03,32.53494246]
[1747886261849,32.53494246,177.06,177.01,32.53494246]
[1747886262147,33.88,177.08,177.02,32.53494246]
[1747886262347,66.41494246,177.08,177.02,32.53494246]
[1747886262556,33.88,177.08,177.03,32.53494246]
[1747886262862,6.3892,177.19,177.1,26.0]
[1747886263060,32.53494246,177.19,177.13,32.53494246]
[1747886263452,32.53494246,177.16,177.1,32.53494246]
[1747886263682,32.53494246,177.15,177.09,58.53494246]
[1747886263849,136.9,177.22,177.11,32.53494246]
[1747886264174,32.53494246,177.17,177.11,32.53494246]
[1747886264556,32.53494246,177.17,177.12,32.53494246]
[1747886264759,32.53494246,177.17,177.11,32.53494246]
[1747886264953,32.53494246,177.13,177.06,26.0]
[1747886265161,32.53494246,177.14,177.08,32.53494246]
[1747886265366,32.53494246,177.14,177.09,32.53494246]
[1747886265872,32.53494246,177.13,177.05,5.64803882]
[1747886266071,32.53494246,177.11,177.05,38.18298128]
[1747886266376,32.53494246,177.06,177.0,32.53494246]
[1747886266871,32.53494246,177.06,176.94,19.78071662]
[1747886267174,32.53494246,177.06,177.0,58.53494246]
[1747886267888,32.53494246,177.06,177.0,32.53494246]
[1747886268177,44.79181043,177.14,176.96,32.53494246]
[1747886268178,32.53494246,177.01,176.96,32.53494246]
[1747886268366,32.53494246,177.01,176.93,1.6218]
[1747886268367,32.53494246,177.03,176.97,58.53494246]
[1747886268555,32.53494246,177.03,176.97,32.53494246]
[1747886268959,32.53494246,177.02,176.95,32.53494246]
[1747886269257,32.53494246,177.01,176.94,5.65163332]
[1747886269452,32.53494246,177.01,176.95,32.53494246]
[1747886269659,32.53494246,177.01,176.96,26.0]
[1747886269858,32.53494246,177.02,176.96,58.53494246]
[1747886270055,32.53494246,177.06,176.99,58.53494246]
[1747886270259,32.53494246,177.04,176.99,26.0]
[1747886270455,32.53494246,177.03,176.99,26.0]
[1747886270677,32.53494246,177.04,176.99,26.0]
[1747886271055,32.53494246,177.05,176.99,32.53494246]
[1747886271264,32.53494246,177.04,176.98,58.53494246]
[1747886271462,32.53494246,177.04,176.98,26.0]
[1747886271662,32.53494246,177.02,176.97,32.53494246]
[1747886272016,32.53494246,177.04,176.98,32.53494246]
[1747886272550,32.53494246,177.04,176.99,26.0]
[1747886272753,176.42719001,177.08,177.0,58.53494246]
[1747886273054,12.06379556,177.1,177.01,32.53494246]
[1747886273255,32.53494246,177.06,177.0,58.53494246]
[1747886273997,5.64626157,177.11,177.04,32.53494246]
[1747886274285,32.53494246,177.1,177.04,32.53494246]
[1747886274780,32.53494246,177.09,177.04,32.53494246]
[1747886274956,32.53494246,177.09,177.01,5.64939833]
[1747886274957,32.53494246,177.07,177.01,32.53494246]
[1747886275153,32.53494246,177.06,177.0,64.1846205]
[1747886275378,32.53494246,177.07,177.01,32.53494246]
[1747886275760,32.53494246,177.07,177.02,32.53494246]
[1747886276179,32.53494246,177.06,177.0,58.53494246]
[1747886276496,32.53494246,177.07,177.02,35.67800895]
[1747886276658,32.53494246,177.08,177.03,32.53494246]
[1747886276983,32.53494246,177.08,177.02,3.14306649]
[1747886276984,32.53494246,177.08,177.02,35.67800895]
[1747886277282,32.53494246,177.05,177.0,31.64967693]
[1747886277582,32.53494246,177.06,177.01,32.53494246]
[1747886277982,32.53494246,177.07,177.01,32.53494246]
[1747886278178,32.53494246,177.06,177.0,32.53494246]
[1747886278379,32.53494246,177.07,177.01,32.53494246]
[1747886278564,5.64620857,177.11,177.01,32.53494246]
[1747886278762,32.53494246,177.07,177.01,32.53494246]
[1747886279286,32.53494246,177.03,176.99,26.0]
[1747886279785,32.53494246,177.03,176.98,58.53494246]
[1747886279958,32.53494246,177.04,176.98,58.53494246]
[1747886280158,33.88,177.11,177.01,32.53494246]
[1747886280365,33.88,177.11,177.02,32.53494246]
[1747886280366,32.53494246,177.08,177.02,32.53494246]
[1747886280871,32.53494246,177.07,177.01,32.53494246]
[1747886281069,32.53494246,177.04,176.98,64.18500395]
[1747886281485,32.53494246,177.05,176.99,32.53494246]
[1747886282180,33.88,177.11,177.01,32.53494246]
[1747886282386,32.53494246,177.07,177.01,32.53494246]
[1747886282582,5.64588979,177.12,177.04,32.53494246]
[1747886282782,32.53494246,177.12,177.06,32.53494246]
[1747886282975,32.53494246,177.13,177.07,32.53494246]
[1747886283177,5.64461503,177.16,177.08,32.53494246]
[1747886283375,32.53494246,177.14,177.08,32.53494246]
[1747886283579,32.53494246,177.14,177.05,26.0]
[1747886283774,32.53494246,177.14,177.08,32.53494246]
[1747886283976,12.23524645,177.17,177.05,27.5624]
[1747886283977,32.53494246,177.15,177.09,32.53494246]
[1747886284184,32.53494246,177.14,177.06,14.11873139]
[1747886284381,32.53494246,177.14,177.08,32.53494246]
[1747886284562,32.53494246,177.15,177.09,32.53494246]
[1747886284767,39.52366892,177.19,177.1,32.53494246]
[1747886284966,32.53494246,177.16,177.1,32.53494246]
[1747886285166,39.52366892,177.19,177.08,26.0]
[1747886285167,32.53494246,177.14,177.08,26.0]
[1747886285369,39.52366892,177.19,177.08,26.0]
[1747886285596,32.53494246,177.13,177.08,26.0]
[1747886285891,32.53494246,177.14,177.08,26.0]
[1747886286091,32.53494246,177.14,177.09,32.53494246]
[1747886286290,32.53494246,177.13,177.07,32.53494246]
[1747886286678,32.53494246,177.13,177.06,31.64755453]
[1747886286877,32.53494246,177.13,177.07,32.53494246]
[1747886287076,32.53494246,177.12,177.07,32.53494246]
[1747886287896,32.53494246,177.13,177.08,32.53494246]
[1747886288092,33.88,177.17,177.08,32.53494246]
[1747886288283,39.52445718,177.17,177.09,32.53494246]
[1747886288491,32.53494246,177.15,177.09,32.53494246]
[1747886288694,39.52445718,177.17,177.09,32.53494246]
[1747886288889,32.53494246,177.15,177.09,32.53494246]
[1747886289193,32.53494246,177.12,177.06,64.18272754]
[1747886289383,32.53494246,177.14,177.08,32.53494246]
[1747886290272,5.6430224,177.21,177.11,32.53494246]
[1747886290472,5.6430224,177.21,177.09,31.64684623]
[1747886290473,32.53494246,177.18,177.09,31.64684623]
[1747886290693,32.53494246,177.15,177.09,31.64684623]
[1747886290878,32.53494246,177.13,177.07,64.18219727]
[1747886291072,32.53494246,177.11,177.07,26.0]
[1747886291397,32.53494246,177.14,177.08,32.53494246]
[1747886291698,22.28087714,177.14,177.08,22.28087714]
[1747886291891,22.28087714,177.13,177.07,53.92835824]
[1747886292274,33.88,177.18,177.09,22.28087714]
[1747886292498,22.28087714,177.14,177.09,22.28087714]
[1747886292679,22.28087714,177.15,177.09,22.28087714]
[1747886292996,22.28087714,177.14,177.08,22.28087714]
[1747886293394,22.28087714,177.15,177.09,22.28087714]
[1747886294004,22.28087714,177.15,177.09,25.4207404]
[1747886294196,5.64403667,177.18,177.09,25.4207404]
[1747886294387,22.28087714,177.14,177.09,5.64679652]
[1747886295385,22.28087714,177.13,177.07,53.92809083]
[1747886295583,22.28087714,177.13,177.08,22.28087714]
[1747886296295,22.28087714,177.13,177.0,1.5314]
[1747886296493,22.28087714,177.11,177.05,48.28087714]
[1747886297013,22.28087714,177.11,177.06,26.0]
[1747886297207,22.28087714,177.12,177.06,48.28087714]
[1747886297399,22.28087714,177.11,177.06,26.0]
[1747886297701,22.28087714,177.12,177.06,48.28087714]
[1747886297903,5.64493367,177.15,177.06,48.28087714]
[1747886298086,22.28087714,177.11,177.06,26.0]
[1747886298401,22.28087714,177.1,177.04,22.28087714]
[1747886298786,22.28087714,177.12,177.07,22.28087714]
[1747886299106,22.28087714,177.13,177.08,22.28087714]
[1747886299504,22.28087714,177.16,177.1,22.28087714]
[1747886299689,33.88,177.2,177.09,22.28087714]
[1747886299690,22.28087714,177.15,177.09,22.28087714]
[1747886300404,33.88,177.2,177.1,22.28087714]
[1747886300611,22.28087714,177.16,177.1,22.28087714]
[1747886301084,22.28087714,177.15,177.11,3.13915761]
[1747886301287,22.28087714,177.12,177.11,3.13915761]
[1747886301799,22.28087714,177.12,177.02,5.6490792]
[1747886301996,22.28087714,177.09,177.02,5.6490792]
[1747886302207,22.28087714,177.06,177.01,5.64933513]
[1747886302408,6.4457,177.11,176.98,5.65035597]
[1747886302708,19.76284584,177.1,176.97,22.28087714]
[1747886302888,22.28087714,177.03,176.98,22.28087714]
[1747886303088,22.28087714,177.04,176.98,22.28087714]
[1747886303396,33.88,177.08,176.97,22.28087714]
[1747886303708,22.28087714,177.04,176.99,3.14407374]
[1747886304207,22.28087714,177.04,176.96,19.778481]
[1747886304406,22.28087714,177.03,176.97,22.28087714]
[1747886304909,22.28087714,177.05,176.99,22.28087714]
[1747886305416,22.28087714,177.03,176.96,31.65070081]
[1747886305598,22.28087714,177.02,176.96,53.93157795]
[1747886305906,22.28087714,177.04,176.98,22.28087714]
[1747886306285,22.28087714,177.03,176.97,22.28087714]
[1747886306484,22.28087714,177.0,176.95,1.5516]
[1747886306885,5.647803,177.06,176.95,29.4836781]
[1747886307087,22.28087714,177.01,176.97,8.58303294]
[1747886307484,5.647803,177.06,176.97,8.58303294]
[1747886307485,22.28087714,177.0,176.97,8.58303294]
[1747886307792,22.28087714,176.99,176.97,8.58303294]
[1747886307999,22.28087714,176.99,176.94,26.0]
[1747886308000,22.28087714,177.0,176.94,53.93249265]
[1747886308186,22.28087714,177.01,176.95,22.28087714]
[1747886308489,22.28087714,177.01,176.94,5.65161551]
[1747886308490,22.28087714,177.0,176.94,26.0]
[1747886308694,22.28087714,177.0,176.94,48.28087714]
[1747886308896,14.11950751,177.06,176.95,22.28087714]
[1747886309097,22.28087714,177.01,176.95,22.28087714]
[1747886309606,22.28087714,177.05,176.99,22.28087714]
[1747886309986,22.28087714,177.04,176.96,26.0]
[1747886310186,22.28087714,177.04,176.98,22.28087714]
[1747886310598,22.28087714,177.04,176.99,22.28087714]
[1747886310905,22.28087714,177.04,176.98,31.65023238]
[1747886310906,22.28087714,177.03,176.98,31.65023238]
[1747886311119,22.28087714,177.01,176.96,53.93174763]
[1747886311293,22.28087714,177.02,176.96,53.93174763]
[1747886311607,22.28087714,177.05,176.99,22.28087714]
[1747886311913,33.88,177.08,176.99,22.28087714]
[1747886312084,22.28087714,177.05,176.99,22.28087714]
[1747886312287,22.28087714,177.06,177.0,22.28087714]
[1747886312620,22.28087714,177.08,177.02,22.28087714]
[1747886312794,22.28087714,177.09,177.03,22.28087714]
[1747886312987,22.28087714,177.08,177.02,22.28087714]
[1747886313301,12.09196712,177.11,177.01,5.64939833]
[1747886313302,22.28087714,177.07,177.01,27.93027547]
[1747886313489,22.28087714,177.07,177.02,22.28087714]
[1747886313697,22.28087714,177.09,177.03,22.28087714]
[1747886313895,22.28087714,177.08,177.01,5.64939833]
[1747886314120,22.28087714,177.06,177.01,27.93027547]
[1747886314316,22.28087714,177.08,177.02,22.28087714]
[1747886314620,22.28087714,177.08,177.01,5.64939833]
[1747886314621,22.28087714,177.06,177.01,5.64939833]
[1747886315587,22.28087714,177.03,176.98,22.28087714]
[1747886315992,22.28087714,177.06,177.0,22.28087714]
[1747886316289,5.64720106,177.08,177.0,22.28087714]
[1747886316486,22.28087714,177.04,176.98,27.93118]
[1747886316722,22.28087714,177.0,176.94,5.65161874]
[1747886316888,22.28087714,177.0,176.94,53.93249588]
[1747886317510,22.28087714,177.0,176.95,22.28087714]
[1747886317713,22.28087714,176.99,176.94,22.28087714]
[1747886317912,22.28087714,176.97,176.91,5.65257226]
[1747886318207,22.28087714,177.0,176.95,3.14653045]
[1747886318410,22.28087714,177.01,176.96,22.28087714]
[1747886318605,5.64844103,177.04,176.95,31.07867911]
[1747886318790,22.28087714,177.0,176.95,8.79780197]
[1747886319312,22.28087714,177.0,176.95,5.65127152]
[1747886319518,22.28087714,177.0,176.95,27.93214866]
[1747886319695,22.28087714,177.03,176.97,22.28087714]
[1747886319900,22.28087714,177.04,176.98,22.28087714]
[1747886320414,22.28087714,177.02,176.96,22.28087714]
[1747886320608,87.24,177.07,176.99,22.28087714]
[1747886320810,22.28087714,177.04,176.99,22.28087714]
[1747886321005,87.24,177.07,176.99,22.28087714]
[1747886321205,22.28087714,177.06,177.0,22.28087714]
[1747886321616,12.09215195,177.11,177.02,22.28087714]
[1747886321797,22.28087714,177.08,177.02,22.28087714]
[1747886321993,22.28087714,177.05,176.99,22.28087714]
[1747886322210,22.28087714,177.04,176.98,22.28087714]
[1747886322707,22.28087714,177.04,176.99,22.28087714]
[1747886323011,22.28087714,177.05,176.99,22.28087714]
[1747886323211,22.28087714,177.04,176.98,27.93118512]
[1747886323590,5.64652738,177.1,176.99,22.28087714]
[1747886323826,22.28087714,177.07,177.01,22.28087714]
[1747886324122,22.28087714,177.06,177.0,22.28087714]
[1747886324417,22.28087714,177.05,177.0,22.28087714]
[1747886324614,22.28087714,177.05,176.98,5.65035597]
[1747886324812,22.28087714,177.04,176.99,22.28087714]
[1747886325827,22.28087714,177.01,176.96,26.0]
[1747886326318,33.88,177.05,176.96,48.28087714]
[1747886326531,22.28087714,177.08,177.02,22.28087714]
[1747886326900,22.28087714,177.06,177.0,48.28087714]
[1747886327102,22.28087714,177.05,177.0,26.0]
[1747886327406,22.28087714,177.04,176.99,22.28087714]
[1747886327817,22.28087714,177.03,176.97,48.28087714]
[1747886328126,22.28087714,177.02,176.97,48.28087714]
[1747886328742,22.28087714,177.02,176.92,25.20281043]
[1747886328743,22.28087714,177.01,176.92,6.411]
[1747886328918,22.28087714,177.0,176.94,22.28087714]
[1747886329114,22.28087714,176.99,176.93,22.28087714]
[1747886329316,22.28087714,176.97,176.91,27.9334292]
[1747886329536,22.28087714,176.92,176.89,2.16241716]
[1747886329710,22.28087714,176.9,176.89,2.16241716]
[1747886329913,22.28087714,176.9,176.85,1.6064]
[1747886330112,22.28087714,176.9,176.85,23.88727714]
[1747886330949,33.9,176.98,176.89,22.28087714]
[1747886331119,56.18087714,176.98,176.92,22.28087714]
[1747886331316,56.18087714,176.98,176.93,22.28087714]
[1747886331515,33.9,176.98,176.93,22.28087714]
[1747886331814,56.18087714,176.98,176.92,22.28087714]
[1747886332132,33.9,176.98,176.94,22.28087714]
[1747886332624,22.28087714,177.0,176.95,22.28087714]
[1747886332830,6.1751,177.05,176.96,22.28087714]
[1747886333039,22.28087714,177.02,176.97,22.28087714]
[1747886333337,22.28087714,177.01,176.96,22.28087714]
[1747886333519,22.28087714,177.01,176.95,22.28087714]
[1747886333722,22.28087714,177.0,176.94,27.93251046]
[1747886334040,22.28087714,177.03,176.98,22.28087714]
[1747886334525,39.54785033,177.06,176.98,22.28087714]
[1747886334725,22.28087714,177.04,176.98,22.28087714]
[1747886334926,22.28087714,177.01,176.96,1.522]
[1747886335133,22.28087714,177.0,176.95,22.28087714]
[1747886335314,5.6485711,177.04,176.95,22.28087714]
[1747886335518,22.28087714,177.01,176.95,22.28087714]
[1747886335829,22.28087714,176.99,176.91,33.9]
[1747886336046,22.28087714,176.99,176.91,39.55257154]
[1747886336216,22.28087714,176.99,176.93,22.28087714]
[1747886336845,27.93123311,176.98,176.92,26.0]
[1747886337042,22.28087714,176.97,176.92,53.933149]
[1747886337339,22.28087714,176.97,176.92,26.0]
[1747886337642,22.28087714,176.97,176.92,48.28087714]
[1747886337838,22.28087714,176.97,176.89,1.522]
[1747886338036,22.28087714,176.97,176.91,48.28087714]
[1747886338530,22.28087714,176.95,176.91,26.0]
[1747886338839,22.28087714,176.94,176.89,22.28087714]
[1747886339433,40.0216,177.0,176.91,22.28087714]
[1747886339631,22.28087714,176.97,176.91,22.28087714]
[1747886339939,6.1216,177.0,176.94,22.28087714]
[1747886340143,28.40247714,177.0,176.94,22.28087714]
[1747886340318,22.28087714,177.0,176.94,22.28087714]
[1747886340519,22.28087714,177.0,176.89,44.79181043]
[1747886340748,58.66870293,177.04,176.95,22.28087714]
[1747886340951,6.0642,177.1,177.0,22.28087714]
[1747886341253,22.28087714,177.05,176.99,22.28087714]
[1747886341429,22.28087714,177.05,176.98,31.65021579]
[1747886341619,22.28087714,177.04,176.98,53.93109293]
[1747886341944,22.28087714,177.06,177.0,22.28087714]
[1747886342117,6.0642,177.1,177.0,22.28087714]
[1747886342319,22.28087714,177.06,177.0,22.28087714]
[1747886343029,6.0642,177.1,177.02,22.28087714]
[1747886343228,22.28087714,177.07,177.01,27.93027547]
[1747886343428,22.28087714,177.08,177.02,22.28087714]
[1747886343951,5.64557104,177.13,177.03,22.28087714]
[1747886344133,22.28087714,177.1,177.04,22.28087714]
[1747886344330,5.64557104,177.13,177.05,22.28087714]
[1747886344537,22.28087714,177.09,177.04,22.28087714]
[1747886344739,22.28087714,177.07,177.03,26.0]
[1747886344954,22.28087714,177.06,176.97,5.65067525]
[1747886345133,22.28087714,177.03,177.0,26.0]
[1747886345840,22.28087714,177.03,176.97,27.93155239]
[1747886346046,33.9,177.08,176.95,5.65101063]
[1747886346047,22.28087714,176.99,176.95,5.65101063]
[1747886346249,22.28087714,176.99,176.94,5.65157672]
[1747886346545,22.28087714,176.99,176.93,27.93277584]
[1747886346725,22.28087714,176.99,176.94,26.0]
[1747886346922,22.28087714,176.98,176.89,14.48373181]
[1747886347240,22.28087714,176.96,176.91,26.0]
[1747886347550,22.28087714,176.95,176.91,26.0]
[1747886347728,22.28087714,176.95,176.9,27.93378838]
[1747886348143,22.28087714,176.95,176.9,22.28087714]
[1747886348647,22.28087714,176.94,176.89,26.35100001]
[1747886348838,22.28087714,176.91,176.85,22.28087714]
[1747886349039,22.28087714,176.91,176.81,53.0]
[1747886349040,22.28087714,176.87,176.8,15.73432047]
[1747886349241,22.28087714,176.86,176.81,5.65578869]
[1747886349543,22.28087714,176.84,176.78,22.28087714]
[1747886349723,22.28087714,176.82,176.76,22.28087714]
[1747886349923,22.28087714,176.82,176.77,26.0]
[1747886350138,22.28087714,176.82,176.77,3.15751073]
[1747886350425,22.28087714,176.8,176.77,3.15751073]
[1747886350838,22.28087714,176.81,176.77,3.15751073]
[1747886351147,22.28087714,176.81,176.77,8.81457923]
[1747886351348,22.28087714,176.81,176.76,5.65735171]
[1747886351846,26.0,176.89,176.78,22.28087714]
[1747886352034,14.12830155,176.95,176.79,22.28087714]
[1747886352227,22.28087714,176.86,176.8,22.28087714]
[1747886352427,22.28087714,176.86,176.78,18.79181043]
[1747886352627,22.28087714,176.86,176.8,22.28087714]
[1747886353037,26.0,176.92,176.8,53.93675209]
[1747886353244,22.28087714,176.87,176.81,22.28087714]
[1747886353445,22.28087714,176.84,176.8,26.0]
[1747886353949,22.28087714,176.84,176.79,5.65631977]
[1747886354152,33.9,176.88,176.8,22.28087714]
[1747886354328,22.28087714,176.85,176.8,22.28087714]
[1747886354527,22.28087714,176.85,176.79,22.28087714]
[1747886355229,22.28087714,176.82,176.76,48.28087714]
[1747886355629,22.28087714,176.82,176.77,22.28087714]
[1747886355828,22.28087714,176.82,176.76,48.28087714]
[1747886356231,22.28087714,176.8,176.74,27.93890588]
[1747886356466,18.79181043,176.87,176.76,22.28087714]
[1747886356755,22.28087714,176.81,176.75,22.28087714]
[1747886357140,22.28087714,176.79,176.74,48.28087714]
[1747886357340,22.28087714,176.8,176.74,53.93859563]
[1747886357527,22.28087714,176.84,176.78,22.28087714]
[1747886357953,22.28087714,176.84,176.79,22.28087714]
[1747886358152,22.28087714,176.83,176.77,22.28087714]
[1747886358337,22.28087714,176.81,176.75,26.0]
[1747886358665,22.28087714,176.79,176.75,26.0]
[1747886358954,18.79181043,176.93,176.81,26.0]
[1747886359163,22.28087714,176.89,176.83,5.65509]
[1747886359341,22.28087714,176.86,176.81,53.93637809]
[1747886359551,5.65227678,176.92,176.82,22.28087714]
[1747886359745,22.28087714,176.88,176.82,22.28087714]
[1747886359933,22.28087714,176.87,176.81,53.93637809]
[1747886360139,5.65223114,176.93,176.83,22.28087714]
[1747886360349,22.28087714,176.89,176.84,22.28087714]
[1747886360548,22.28087714,176.87,176.81,53.93637809]
[1747886360737,22.28087714,176.87,176.81,31.65550095]
[1747886360933,22.28087714,176.86,176.81,5.65550095]
[1747886361133,22.28087714,176.85,176.8,5.65608789]
[1747886361359,22.28087714,176.87,176.8,5.65608789]
[1747886361546,22.28087714,176.87,176.81,22.28087714]
[1747886361860,31.65254371,176.92,176.81,22.28087714]
[1747886362088,22.28087714,176.86,176.8,27.93696503]
[1747886362265,31.65254371,176.92,176.8,27.93696503]
[1747886362564,22.28087714,176.86,176.81,22.28087714]
[1747886362942,18.79181043,176.91,176.81,22.28087714]
[1747886363246,5.65355042,176.88,176.76,22.28087714]
[1747886363552,22.28087714,176.83,176.77,22.28087714]
[1747886363755,22.28087714,176.83,176.77,48.28087714]
[1747886363953,33.92,176.87,176.77,48.28087714]
[1747886364260,22.28087714,176.83,176.77,26.0]
[1747886364573,22.28087714,176.81,176.75,22.28087714]
[1747886364733,53.06,176.86,176.77,22.28087714]
[1747886364734,22.28087714,176.83,176.77,22.28087714]
[1747886364937,53.06,176.86,176.75,26.0]
[1747886364938,22.28087714,176.81,176.75,26.0]
[1747886365157,22.28087714,176.81,176.75,22.28087714]
[1747886365356,22.28087714,176.81,176.73,1.5948]
[1747886365549,5.65542706,176.83,176.73,23.87567714]
[1747886365757,22.28087714,176.8,176.74,22.28087714]
[1747886365974,22.28087714,176.79,176.73,49.87567714]
[1747886366174,22.28087714,176.79,176.73,23.87567714]
[1747886366488,5.65542706,176.83,176.72,26.0]
[1747886366489,22.28087714,176.77,176.72,26.0]
[1747886366687,22.28087714,176.78,176.72,48.28087714]
[1747886367058,33.92,176.81,176.72,48.28087714]
[1747886367254,22.28087714,176.78,176.72,48.28087714]
[1747886367455,22.28087714,176.77,176.72,26.0]
[1747886367656,5.65610859,176.8,176.72,48.28087714]
[1747886367872,22.28087714,176.78,176.72,48.28087714]
[1747886368183,22.28087714,176.76,176.7,22.28087714]
[1747886368484,22.28087714,176.75,176.68,7.26512542]
[1747886368678,22.28087714,176.74,176.68,55.54600256]
[1747886368986,22.28087714,176.74,176.68,29.54600256]
[1747886369169,22.28087714,176.75,176.69,27.94033483]
[1747886369483,22.28087714,176.75,176.69,22.28087714]
[1747886369958,18.64964886,176.8,176.72,22.28087714]
[1747886369959,5.65616341,176.8,176.72,22.28087714]
[1747886370153,33.92,176.81,176.71,26.0]
[1747886370154,6.476,176.83,176.74,22.28087714]
[1747886370361,12.13125922,176.83,176.77,22.28087714]
[1747886370577,22.28087714,176.83,176.77,22.28087714]
[1747886370891,22.28087714,176.82,176.76,22.28087714]
[1747886371186,22.28087714,176.83,176.75,26.0]
[1747886371395,22.28087714,176.83,176.77,22.28087714]
[1747886371681,33.92,176.84,176.78,3.15676341]
[1747886371861,56.20087714,176.84,176.78,25.43764055]
[1747886372053,33.92,176.84,176.78,25.43764055]